{"text_format":"1","workbook":"xlsx","n_sheets":4,"sheets":["PAUTA","INFORME1","GRAFICO","Hoja1"],"not_rendered":{"charts":2,"images":1,"macros":1,"external_links":0,"defined_names":5,"comments":0,"pivot_tables":0},"unopened":[],"bounds":{"document_bytes":16777216,"sheet_cells":100000,"rows_first":2000,"rows_last":500,"rows_between":2000,"halvings":0,"cell_chars":16384,"cell_head_chars":4096},"cells_cut":0,"cells_raw":0,"read":"whole","date_system":"1900"}

{"sheet":"PAUTA","index":0,"n_rows":112,"n_cols":121,"rows_kept":112,"cut":false,"hidden":false,"merged":[[105,0,105,2],[106,0,106,2],[107,0,107,1],[108,0,108,6],[111,0,111,2],[36,0,36,6],[23,0,23,4],[71,0,71,2],[40,0,40,2],[34,0,34,4],[42,0,42,1],[68,0,68,6],[43,0,43,6],[41,0,41,5],[11,0,11,1],[12,0,12,1],[8,4,8,5],[89,0,89,2],[90,0,90,1],[35,0,35,1],[38,0,38,2],[39,0,39,6],[8,0,8,1],[9,0,9,1],[10,0,10,1],[14,3,14,5],[24,0,24,4],[25,0,25,1],[26,0,26,6],[32,0,32,2],[82,0,82,2],[87,0,87,2],[81,0,81,6],[73,0,73,2],[75,0,75,1],[74,0,74,2],[103,0,103,2],[80,0,80,2],[64,0,64,2],[66,0,66,2],[67,0,67,1],[95,0,95,2],[96,0,96,1],[97,0,97,6],[83,0,83,1],[84,0,84,6],[94,0,94,6],[93,0,93,2],[76,0,76,6],[91,0,91,6],[88,0,88,6],[72,0,72,6],[9,4,9,5],[7,0,7,1],[3,0,3,6],[4,0,4,6],[6,4,6,5],[6,0,6,1]]}
[]
[]
[]
["INSTRUMENTO DE AUDITORIA"]
["GESTION DE SEGURIDAD"]
[]
["FAENA",null,"Planta xxxxx"]
["FECHA AUDITORIA",null,"2022-04-19"]
["EMPRESA",null,"ENAMI"]
["AREA",null,"Operaciones"]
["SUPERINTENDENTE",null,"Juan Perez",null,null,null,null,null,null,null,null,null,null,null,null,null,null,null,null,null,null,null,null,null,null,null,null,null,null,null,null,null,null,null,null,null,null,null,null,null,null,null,null,null,null,null,null,null,null,null,null,null,null,null,null,null,null,null,null,null,null,null,null,null,null,null,null,null,null,null,null,null,null,null,null,null,null,null,null,null,null,null,null,null,null,null,null,null,null,null,null,null,null,null,null,null,null,null,null,null,null,null,null,null,null,null,null,null,null,null,null,null,null,null,null,null,null,null,null,null,"Administrador de Contrato "]
["JEFE DE AREA",null,"Juan Perez",null,null,null,null,null,null,null,null,null,null,null,null,null,null,null,null,null,null,null,null,null,null,null,null,null,null,null,null,null,null,null,null,null,null,null,null,null,null,null,null,null,null,null,null,null,null,null,null,null,null,null,null,null,null,null,null,null,null,null,null,null,null,null,null,null,null,null,null,null,null,null,null,null,null,null,null,null,null,null,null,null,null,null,null,null,null,null,null,null,null,null,null,null,null,null,null,null,null,null,null,null,null,null,null,null,null,null,null,null,null,null,null,null,null,null,null,null,"Jefe Dpto. de Prevención de Riesgos "]
["SUPERVISOR ",null,"Juan Perez",null,null,null,null,null,null,null,null,null,null,null,null,null,null,null,null,null,null,null,null,null,null,null,null,null,null,null,null,null,null,null,null,null,null,null,null,null,null,null,null,null,null,null,null,null,null,null,null,null,null,null,null,null,null,null,null,null,null,null,null,null,null,null,null,null,null,null,null,null,null,null,null,null,null,null,null,null,null,null,null,null,null,null,null,null,null,null,null,null,null,null,null,null,null,null,null,null,null,null,null,null,null,null,null,null,null,null,null,null,null,null,null,null,"C","Patricia Morales Berrios ",null,null,"Asesor en Prevención de Riesgos "]
[null,null,null,null,null,null,null,null,null,null,null,null,null,null,null,null,null,null,null,null,null,null,null,null,null,null,null,null,null,null,null,null,null,null,null,null,null,null,null,null,null,null,null,null,null,null,null,null,null,null,null,null,null,null,null,null,null,null,null,null,null,null,null,null,null,null,null,null,null,null,null,null,null,null,null,null,null,null,null,null,null,null,null,null,null,null,null,null,null,null,null,null,null,null,null,null,null,null,null,null,null,null,null,null,null,null,null,null,null,null,null,null,null,null,null,null,"MC","Natalia Sotomayor Rojas "]
[null,null,null,"EVALUACION",null,null,null,null,null,null,null,null,null,null,null,null,null,null,null,null,null,null,null,null,null,null,null,null,null,null,null,null,null,null,null,null,null,null,null,null,null,null,null,null,null,null,null,null,null,null,null,null,null,null,null,null,null,null,null,null,null,null,null,null,null,null,null,null,null,null,null,null,null,null,null,null,null,null,null,null,null,null,null,null,null,null,null,null,null,null,null,null,null,null,null,null,null,null,null,null,null,null,null,null,null,null,null,null,null,null,null,null,null,null,null,null,"NC","Danny Sepúlveda Nievas"]
[null,null,null,"Pje. Obt.","Pje. Mód.","% Módulo",null,null,null,null,null,null,null,null,null,null,null,null,null,null,null,null,null,null,null,null,null,null,null,null,null,null,null,null,null,null,null,null,null,null,null,null,null,null,null,null,null,null,null,null,null,null,null,null,null,null,null,null,null,null,null,null,null,null,null,null,null,null,null,null,null,null,null,null,null,null,null,null,null,null,null,null,null,null,null,null,null,null,null,null,null,null,null,null,null,null,null,null,null,null,null,null,null,null,null,null,null,null,null,null,null,null,null,null,null,null,"NA","Patricia Morales B. - Natalia Sotomayor R."]
["1°","ESTRUCTURA","Planes y Programas",{"$f":"F33+F39","v":0.2},{"$f":"D33+D39","v":0.2},{"$f":"(D17*100)/E17","v":100},null,null,null,null,null,null,null,null,null,null,null,null,null,null,null,null,null,null,null,null,null,null,null,null,null,null,null,null,null,null,null,null,null,null,null,null,null,null,null,null,null,null,null,null,null,null,null,null,null,null,null,null,null,null,null,null,null,null,null,null,null,null,null,null,null,null,null,null,null,null,null,null,null,null,null,null,null,null,null,null,null,null,null,null,null,null,null,null,null,null,null,null,null,null,null,null,null,null,null,null,null,null,null,null,null,null,null,null,null,null,0.5,"Patricia Morales B.- Danny Sepúlveda N."]
["2°","RIESGOS CRITICOS","Estándares de fatalidades y accidentes graves",{"$f":"F65+F72","v":0.40000000000000013},{"$f":"D65+D72","v":0.4},{"$f":"(D18*100)/E18","v":100.00000000000003},null,null,null,null,null,null,null,null,null,null,null,null,null,null,null,null,null,null,null,null,null,null,null,null,null,null,null,null,null,null,null,null,null,null,null,null,null,null,null,null,null,null,null,null,null,null,null,null,null,null,null,null,null,null,null,null,null,null,null,null,null,null,null,null,null,null,null,null,null,null,null,null,null,null,null,null,null,null,null,null,null,null,null,null,null,null,null,null,null,null,null,null,null,null,null,null,null,null,null,null,null,null,null,null,null,null,null,null,null,null,null,"Natalia Sotomayor R. - Danny Sepúlveda N."]
["3°","PROTOCOLOS","Gestión de riesgos en terreno",{"$f":"F81+F88+F94+F104","v":0.30000000000000004},{"$f":"D81+D88+D94+D104","v":0.30000000000000004},{"$f":"(D19*100)/E19","v":100}]
["4°","BAJA CONSECUENCIA","Control de frecuencia, baja consecuencia",{"$f":"F112","v":0.1},{"$f":"D112","v":0.1},{"$f":"(D20*100)/E20","v":100}]
[null,null,"RESULTADO TOTAL",{"$f":"SUM(D17:D20)","v":1.0000000000000002},{"$f":"SUM(E17:E20)","v":1.0000000000000002},{"$f":"(D21*100)/E21","v":100}]
[]
[]
["1.- ESTRUCTURA"]
["1.1.- Planificación"]
["ITEM",null,"ACCIONES","FACTOR","EVALUACION","PUNTAJE","OBSERVACIONES"]
[]
["1.1.1","Plan PDR Local","Análisis local, difusión y puesta en marcha",0.03,"C",{"$f":"IF(OR(E28=\"C\",E28=\"NA\"),D28,(IF(E28=\"MC\",(D28*$DM$17),0)))","v":0.03},"PRUEBA"]
["1.1.2","Personalizados","Carga de actividades en Plataforma",0.05,"C",{"$f":"IF(OR(E29=\"C\",E29=\"NA\"),D29,(IF(E29=\"MC\",(D29*$DM$17),0)))","v":0.05}]
["1.1.3","Control de gestión local","Método de control y retroalimentación",0.03,"C",{"$f":"IF(OR(E30=\"C\",E30=\"NA\"),D30,(IF(E30=\"MC\",(D30*$DM$17),0)))","v":0.03}]
["1.1.4","Informes corporativos","Realización y control de gestión",0.02,"C",{"$f":"IF(OR(E31=\"C\",E31=\"NA\"),D31,(IF(E31=\"MC\",(D31*$DM$17),0)))","v":0.02}]
["1.1.5","CPHS","Constitución y actas",0.02,"C",{"$f":"IF(OR(E32=\"C\",E32=\"NA\"),D32,(IF(E32=\"MC\",(D32*$DM$17),0)))","v":0.02}]
["TOTAL",null,null,0.15000000000000002,null,{"$f":"SUM(F28:F32)","v":0.15}]
[]
["1.2.- Empresas Contratistas"]
["ITEM",null,"ACCIONES","FACTOR","EVALUACION","PUNTAJE","OBSERVACIONES"]
[]
["1.2.1","Programa Corporativo","Recepción y control documental",0.05,"C",{"$f":"IF(OR(E38=\"C\",E38=\"NA\"),D38,(IF(E38=\"MC\",(D38*$DM$17),0)))","v":0.05}]
["TOTAL",null,null,0.05,null,{"$f":"SUM(F38)","v":0.05}]
[]
["2.- RIESGOS CRITICOS"]
["2.1.- Estándares de Prevención de Fatalidades y Accidentes Graves"]
["ITEM",null,"ACCIONES","FACTOR","EVALUACION","PUNTAJE","OBSERVACIONES"]
[]
["2.1.1","Pérdida de Control VYE","Conductores autorizados (Menores y equipos)",0.01,"C",{"$f":"IF(OR(E45=\"C\",E45=\"NA\"),D45,(IF(E45=\"MC\",(D45*$DM$17),0)))","v":0.01}]
["2.1.2",null,"Registro y control de vehículos y equipos",0.01,"C",0.01]
["2.1.3","Pérdida de equilibrio","Estado líneas de vida, orejas, plataformas, P.ancl",0.02,"C",0.02]
["2.1.4",null,"Protocolos de andamios y/o equipos móviles",0.02,"C",0.02]
["2.1.5","Contacto con SUSPEL","Rotulación, HDS, Señales, EPP esp. y ALMC.",0.02,"C",0.02]
["2.1.6",null,"Duchas de emergencias, productos de mitigación",0.02,"C",0.02]
["2.1.7","Contacto Partes móviles","Protección de partes móviles, paradas, otros.",0.02,"C",0.02]
["2.1.8",null,"Implementación Estándar de bloqueo de equipos",0.02,"C",0.02]
["2.1.9","Contacto con energía eléctrica","Estado de salas eléctricas (Implementación gral)",0.01,"C",0.01]
["2.1.10",null,"Gavetas, tableros y extensiones en terreno",0.01,"C",{"$f":"IF(OR(E54=\"C\",E54=\"NA\"),D54,(IF(E54=\"MC\",(D54*$DM$17),0)))","v":0.01}]
["2.1.11","Liberación descontrolada E.","Implementación Bloqueo de Válvulas y líneas",0.01,"C",0.01]
["2.1.12",null,"Dispositivos de contención de energía",0.01,"C",{"$f":"IF(OR(E56=\"C\",E56=\"NA\"),D56,(IF(E56=\"MC\",(D56*$DM$17),0)))","v":0.01}]
["2.1.13","Exp. Atmosfera peligrosa","Identificación de espacios confinados",0.01,"C",0.01]
["2.1.14",null,"Estado de equipo medidor de gases.",0.01,"C",0.01]
["2.1.15","Contacto con M/L caliente F.","EPP específicos",0.02,"C",{"$f":"IF(OR(E59=\"C\",E59=\"NA\"),D59,(IF(E59=\"MC\",(D59*$DM$17),0)))","v":0.02}]
["2.1.16",null,"Puntos de trabajo en caliente",0.02,"C",{"$f":"IF(OR(E60=\"C\",E60=\"NA\"),D60,(IF(E60=\"MC\",(D60*$DM$17),0)))","v":0.02}]
["2.1.17","Pérdida de control carga susp.","Protocolo o Plan de izaje / Cierre de área",0.02,"C",0.02]
["2.1.18",null,"Estados de elementos de izaje (Código de color)",0.02,"C",0.02]
["2.1.19","Colapso de terreno o Falla Est","Métodos de control de terreno u otros.",0.01,"C",0.01]
["2.1.20",null,"Revisión de viseras, taludes, otros.",0.01,"C",0.01]
["TOTAL",null,null,0.30000000000000004,null,{"$f":"SUM(F45:F64)","v":0.3000000000000001}]
[]
["2.2.- Mejoramiento Continuo"]
["ITEM",null,"ACCIONES","FACTOR","EVALUACION","PUNTAJE","OBSERVACIONES"]
[]
["2.2.1","Proyectos RC","Revisar proyecto de mejoramiento RC",0.05,"C",{"$f":"IF(OR(E70=\"C\",E70=\"NA\"),D70,(IF(E70=\"MC\",(D70*$DM$17),0)))","v":0.05}]
["2.2.2","Reportabilidad Preventiva","Foco, Estado y Compromiso",0.05,"C",{"$f":"IF(OR(E71=\"C\",E71=\"NA\"),D71,(IF(E71=\"MC\",(D71*50%),0)))","v":0.05}]
["TOTAL",null,null,0.1,null,{"$f":"SUM(F70:F71)","v":0.1}]
[]
["3.- PROTOCOLOS"]
["3.1.- Control de Terreno"]
["ITEM",null,"ACCIONES","FACTOR","EVALUACION","PUNTAJE","OBSERVACIONES"]
[]
["3.1.1","Reunión de coordinación","Registros",0.02,"C",{"$f":"IF(OR(E78=\"C\",E78=\"NA\"),D78,(IF(E78=\"MC\",(D78*$DM$17),0)))","v":0.02}]
["3.1.2","PTG ARO","Revisión de implementación",0.02,"C",{"$f":"IF(OR(E79=\"C\",E79=\"NA\"),D79,(IF(E79=\"MC\",(D79*$DM$17),0)))","v":0.02}]
["3.1.3","Disciplina de instructivos","Función, Capacitación y evaluación de eficacia",0.02,"C",{"$f":"IF(OR(E80=\"C\",E80=\"NA\"),D80,(IF(E80=\"MC\",(D80*$DM$17),0)))","v":0.02}]
["TOTAL",null,null,0.06,null,{"$f":"SUM(F78:F80)","v":0.06}]
[]
["3.2.-Incidentes - Aprendizaje"]
["ITEM",null,"ACCIONES","FACTOR","EVALUACION","PUNTAJE","OBSERVACIONES"]
[]
["3.2.1","Planes de Acción","Cierre de investigación y gestión de riesgos",0.02,"C",{"$f":"IF(OR(E86=\"C\",E86=\"NA\"),D86,(IF(E86=\"MC\",(D86*$DM$17),0)))","v":0.02}]
["3.2.2","Alertas y aplicabilidad","Registros de análisis, gestión y difusiones",0.02,"C",{"$f":"IF(OR(E87=\"C\",E87=\"NA\"),D87,(IF(E87=\"MC\",(D87*$DM$17),0)))","v":0.02}]
["TOTAL",null,null,0.04,null,{"$f":"SUM(F86:F87)","v":0.04}]
[]
["3.3.- Alcohol y drogas"]
["ITEM",null,"ACCIONES","FACTOR","EVALUACION","PUNTAJE","OBSERVACIONES"]
[]
["3.3.1","Procedimiento","Respaldos de difusiones y control de testeos",0.1,"C",{"$f":"IF(OR(E93=\"C\",E93=\"NA\"),D93,(IF(E93=\"MC\",(D93*$DM$17),0)))","v":0.1}]
["TOTAL",null,null,0.1,null,{"$f":"SUM(F93)","v":0.1}]
[]
["3.4.- Información documentada"]
["ITEM",null,"ACCIONES","FACTOR","EVALUACION","PUNTAJE","OBSERVACIONES"]
[]
["3.2.1","ODI","Proceso de inducción y control documental",0.02,"C",{"$f":"IF(OR(E99=\"C\",E99=\"NA\"),D99,(IF(E99=\"MC\",(D99*$DM$17),0)))","v":0.02}]
["3.2.2","Control documentos locales","Procedimientos, Instructivos, etc.",0.02,"C",{"$f":"IF(OR(E100=\"C\",E100=\"NA\"),D100,(IF(E100=\"MC\",(D100*$DM$17),0)))","v":0.02}]
["3.2.3","Capacitación y evaluación","Registro de entrega PTS, y Observación",0.02,"C",{"$f":"IF(OR(E101=\"C\",E101=\"NA\"),D101,(IF(E101=\"MC\",(D101*$DM$17),0)))","v":0.02}]
["3.2.3","Acreditación SIGIS","Estado de acreditación Empresa y Trabajadores",0.02,"C",{"$f":"IF(OR(E102=\"C\",E102=\"NA\"),D102,(IF(E102=\"MC\",(D102*$DM$17),0)))","v":0.02}]
["3.2.4","RESSO y Listado de EECC","Registro y entrega de listado a SERNAGEOMIN",0.02,"C",{"$f":"IF(OR(E103=\"C\",E103=\"NA\"),D103,(IF(E103=\"MC\",(D103*$DM$17),0)))","v":0.02}]
["TOTAL",null,null,0.1,null,{"$f":"SUM(F99:F103)","v":0.1}]
[]
["4.- BAJA CONSECUENCIA"]
["4.1.- Focalización alta frecuencia y baja consecuencia"]
["ITEM",null,"ACCIONES","FACTOR","EVALUACION","PUNTAJE","OBSERVACIONES"]
[]
["4.1.1","Análisis local","PPT y difusión equipo",0.05,"C",{"$f":"IF(OR(E110=\"C\",E110=\"NA\"),D110,(IF(E110=\"MC\",(D110*$DM$17),0)))","v":0.05}]
["4.1.2","Planificación focalizada","Acción sobre empresas y servicios",0.05,"C",{"$f":"IF(OR(E111=\"C\",E111=\"NA\"),D111,(IF(E111=\"MC\",(D111*$DM$17),0)))","v":0.05}]
["TOTAL",null,null,0.1,null,{"$f":"SUM(F110:F111)","v":0.1}]

{"sheet":"INFORME1","index":1,"n_rows":43,"n_cols":8,"rows_kept":43,"cut":false,"hidden":false,"merged":[[31,4,31,6],[32,4,32,6],[33,4,33,6],[42,0,42,1],[42,5,42,7],[39,0,39,2],[40,0,40,1],[40,5,40,7],[41,0,41,1],[41,5,41,7],[41,3,41,4],[42,3,42,4],[40,3,40,4],[34,4,34,6],[35,4,35,6],[36,4,36,6],[8,0,8,1],[8,6,8,7],[10,0,10,1],[10,6,10,7],[19,0,19,3],[10,2,10,3],[8,2,8,3],[9,2,9,3],[28,4,28,6],[29,4,29,6],[26,4,26,6],[24,4,24,6],[25,4,25,6],[22,4,22,6],[23,4,23,6],[21,4,21,6],[20,4,20,6],[27,4,27,6],[37,4,37,6],[0,2,0,3],[4,0,4,1],[5,0,5,1],[4,2,4,3],[5,2,5,3],[1,0,1,7],[2,0,2,7],[5,6,5,7],[6,0,6,1],[7,0,7,1],[9,0,9,1],[9,6,9,7],[7,6,7,7],[6,2,6,3],[7,2,7,3]]}
[]
["INFORME DE AUDITORIA"]
["\"Expectativas\""]
[]
["EMPRESA",null,{"$f":"PAUTA!C7","v":"Planta xxxxx"}]
["GERENCIA",null,{"$f":"PAUTA!C9","v":"ENAMI"},null,null,"FECHA"]
["AREA / DIVISION",null,{"$f":"PAUTA!C10","v":"Operaciones"}]
["NOMBRE GERENTE",null,{"$f":"PAUTA!C11","v":"Juan Perez"},null,null,"FIRMA"]
["NOMBRE ADMINISTRADOR",null,{"$f":"PAUTA!C12","v":"Juan Perez"},null,null,"FIRMA"]
["NOMBRE ASESOR PDR",null,{"$f":"PAUTA!C13","v":"Juan Perez"},null,null,"FIRMA"]
[null,null,null,null,null,"FIRMA"]
[]
[]
[]
[]
[]
[]
[]
[]
["DESCRIPCION DE NO CONFORMIDADES - HALLAZGOS."]
["N°","HALLAZGO","ACCION CORRECTIVA","ACCION PREVENTIVA","RESPONSABLE",null,null,"FECHA"]
[1]
[2]
[3]
[4]
[5]
[6]
[7]
[8]
[9]
[10]
[11]
[12]
[13]
[14]
[15]
[16]
[17]
[]
["VALIDACION DE INFORMACIÓN"]
[null,null,"NOMBRE","CARGO",null,"FIRMA"]
["REALIZADO POR"]
["APROBADO POR"]

{"sheet":"GRAFICO","index":2,"n_rows":43,"n_cols":9,"rows_kept":43,"cut":false,"hidden":false,"merged":[[42,4,42,5],[36,6,36,8],[38,4,38,5],[39,4,39,5],[40,4,40,5],[41,4,41,5]]}
[]
[]
[]
[]
[]
[]
[]
[]
[]
[]
[]
[]
[]
[]
[]
[]
[]
[]
[]
[]
[]
[]
[]
[]
[]
[]
[]
[]
[]
[]
[]
[]
[]
[]
[]
[]
[null,null,null,null,null,null,{"$f":"PAUTA!D15","v":"EVALUACION"}]
[null,null,null,null,null,null,{"$f":"PAUTA!D16","v":"Pje. Obt."},{"$f":"PAUTA!E16","v":"Pje. Mód."},{"$f":"PAUTA!F16","v":"% Módulo"}]
[null,null,null,{"$f":"PAUTA!A17","v":"1°"},{"$f":"PAUTA!B17","v":"ESTRUCTURA"},null,{"$f":"PAUTA!D17","v":0.2},{"$f":"PAUTA!E17","v":0.2},{"$f":"PAUTA!F17","v":100}]
[null,null,null,{"$f":"PAUTA!A18","v":"2°"},{"$f":"PAUTA!B18","v":"RIESGOS CRITICOS"},null,{"$f":"PAUTA!D18","v":0.40000000000000013},{"$f":"PAUTA!E18","v":0.4},{"$f":"PAUTA!F18","v":100.00000000000003}]
[null,null,null,{"$f":"PAUTA!A19","v":"3°"},{"$f":"PAUTA!B19","v":"PROTOCOLOS"},null,{"$f":"PAUTA!D19","v":0.30000000000000004},{"$f":"PAUTA!E19","v":0.30000000000000004},{"$f":"PAUTA!F19","v":100}]
[null,null,null,{"$f":"PAUTA!A20","v":"4°"},{"$f":"PAUTA!B20","v":"BAJA CONSECUENCIA"},null,{"$f":"PAUTA!D20","v":0.1},{"$f":"PAUTA!E20","v":0.1},{"$f":"PAUTA!F20","v":100}]
[null,null,null,null,"TOTAL",null,{"$f":"PAUTA!D21","v":1.0000000000000002},{"$f":"PAUTA!E21","v":1.0000000000000002},{"$f":"PAUTA!F21","v":100}]

{"sheet":"Hoja1","index":3,"n_rows":0,"n_cols":0,"rows_kept":0,"cut":false,"hidden":false,"merged":[]}